Workbook

Sheet Титул
AF1: Утверждаю
AF4: Васина Е.В.
A5: Методическим Советом
A6: Протокол № | D6: 4 от 17.11.2021
A9: УЧЕБНЫЙ ПЛАН
A10: программы подготовки квалифицированых рабочих, служащих
A11: Санкт-Петербургское государственное бюджетное профессиональное образовательное учреждение СПб ГБПОУ «Петровский колледж»
A12: наименование образовательного учреждения (организации)
A13: по профессии среднего профессионального образования
A14: 54.01.20 | G14: Графический дизайнер
A15: код | G15: наименование профессии
P16: среднее общее образование
P17: Уровень образования, необходимый для приема на обучение
A19: квалификация: | G19: Графический дизайнер
G20: 20 7
G21: 21 7
G22: 22 7
G23: 23 7
G24: 24 7
G25: 25 7
A27: форма обучения | G27: Очная | P27: Нормативный срок освоения ППКРС | AC27: 1г 10м | AI27: год начала подготовки по УП | AS27: 2023
A29: профиль получаемого профессионального образования | U29: Социально-экономический
U30: при реализации программы среднего общего образования
A32: Приказ об утверждении ФГОС | L32: от | N32: 09.12.2016 | S32: № | U32: 1543

Sheet График
A2: 1 Календарный учебный график
A3: Курс | B3: Сентябрь | F3: 29 сен - 5 окт | G3: Октябрь | J3: 27 окт - 2 ноя | K3: Ноябрь | O3: Декабрь | S3: 29 дек - 4 янв | T3: Январь | W3: 26 янв - 1 фев | X3: Февраль | AA3: 23 фев - 1 мар | AB3: Март | AF3: 30 мар - 5 апр | AG3: Апрель | AJ3: 27 апр - 3 май | AK3: Май | AO3: Июнь | AS3: 29 июн - 5 июл | AT3: Июль | AW3: 27 июл -2 авг | AX3: Август
B4: 1 - 7 | C4: 8 - 14 | D4: 15 - 21 | E4: 22 - 28 | G4: 6 - 12 | H4: 13 - 19 | I4: 20 - 26 | K4: 3 - 9 | L4: 10 - 16 | M4: 17 - 23 | N4: 24 - 30 | O4: 1 - 7 | P4: 8 - 14 | Q4: 15 - 21 | R4: 22 - 28 | T4: 5 - 11 | U4: 12 - 18 | V4: 19 - 25 | X4: 2 - 8 | Y4: 9 - 15 | Z4: 16 - 22 | AB4: 2 - 8 | AC4: 9 - 15 | AD4: 16 - 22 | AE4: 23 - 29 | AG4: 6 - 12 | AH4: 13 - 19 | AI4: 20 - 26 | AK4: 4 - 10 | AL4: 11 - 17 | AM4: 18 - 24 | AN4: 25 - 31 | AO4: 1 - 7 | AP4: 8 - 14 | AQ4: 15 - 21 | AR4: 22 - 28 | AT4: 6 - 12 | AU4: 13 - 19 | AV4: 20 - 26 | AX4: 3 - 9 | AY4: 10 - 16 | AZ4: 17 - 23 | BA4: 24 - 31
B5: 1 | C5: 2 | D5: 3 | E5: 4 | F5: 5 | G5: 6 | H5: 7 | I5: 8 | J5: 9 | K5: 10 | L5: 11 | M5: 12 | N5: 13 | O5: 14 | P5: 15 | Q5: 16 | R5: 17 | S5: 18 | T5: 19 | U5: 20 | V5: 21 | W5: 22 | X5: 23 | Y5: 24 | Z5: 25 | AA5: 26 | AB5: 27 | AC5: 28 | AD5: 29 | AE5: 30 | AF5: 31 | AG5: 32 | AH5: 33 | AI5: 34 | AJ5: 35 | AK5: 36 | AL5: 37 | AM5: 38 | AN5: 39 | AO5: 40 | AP5: 41 | AQ5: 42 | AR5: 43 | AS5: 44 | AT5: 45 | AU5: 46 | AV5: 47 | AW5: 48 | AX5: 49 | AY5: 50 | AZ5: 51 | BA5: 52
A7: 0
A10: I
A13: II
A16: III
A19: IV
A22: V
A25: VI
A28: VII
A31: VIII
A34: IX
A37: X
A40: XI
A44: I | S44: К | T44: К | AK44: У | AL44: У | AM44: У | AN44: У | AO44: П | AP44: П | AQ44: П | AR44: А | AS44: К | AT44: К | AU44: К | AV44: К | AW44: К | AX44: К | AY44: К | AZ44: К | BA44: К
A51: II | O51: У | P51: У | Q51: У | R51: У | S51: К | T51: К | AJ51: У | AK51: У | AL51: П | AM51: П | AN51: П | AO51: П | AP51: А | AQ51: А | AR51: Г | AS51: * | AT51: * | AU51: * | AV51: * | AW51: * | AX51: * | AY51: * | AZ51: * | BA51: *
A58: III | B58: * | C58: * | D58: * | E58: * | F58: * | G58: * | H58: * | I58: * | J58: * | K58: * | L58: * | M58: * | N58: * | O58: * | P58: * | Q58: * | R58: * | S58: * | T58: * | U58: * | V58: * | W58: * | X58: * | Y58: * | Z58: * | AA58: * | AB58: * | AC58: * | AD58: * | AE58: * | AF58: * | AG58: * | AH58: * | AI58: * | AJ58: * | AK58: * | AL58: * | AM58: * | AN58: * | AO58: * | AP58: * | AQ58: * | AR58: * | AS58: * | AT58: * | AU58: * | AV58: * | AW58: * | AX58: * | AY58: * | AZ58: * | BA58: *
A65: IV | B65: * | C65: * | D65: * | E65: * | F65: * | G65: * | H65: * | I65: * | J65: * | K65: * | L65: * | M65: * | N65: * | O65: * | P65: * | Q65: * | R65: * | S65: * | T65: * | U65: * | V65: * | W65: * | X65: * | Y65: * | Z65: * | AA65: * | AB65: * | AC65: * | AD65: * | AE65: * | AF65: * | AG65: * | AH65: * | AI65: * | AJ65: * | AK65: * | AL65: * | AM65: * | AN65: * | AO65: * | AP65: * | AQ65: * | AR65: * | AS65: * | AT65: * | AU65: * | AV65: * | AW65: * | AX65: * | AY65: * | AZ65: * | BA65: *
A72: V | B72: * | C72: * | D72: * | E72: * | F72: * | G72: * | H72: * | I72: * | J72: * | K72: * | L72: * | M72: * | N72: * | O72: * | P72: * | Q72: * | R72: * | S72: * | T72: * | U72: * | V72: * | W72: * | X72: * | Y72: * | Z72: * | AA72: * | AB72: * | AC72: * | AD72: * | AE72: * | AF72: * | AG72: * | AH72: * | AI72: * | AJ72: * | AK72: * | AL72: * | AM72: * | AN72: * | AO72: * | AP72: * | AQ72: * | AR72: * | AS72: * | AT72: * | AU72: * | AV72: * | AW72: * | AX72: * | AY72: * | AZ72: * | BA72: *
A79: VI
A86: VII
A93: VIII
A100: IX
A107: X
A114: XI
A121: Обозначения: | H121: Обучение по циклам | Y121: У | Z121: Учебная практика
G123: А | H123: Промежуточная аттестация | Y123: П | Z123: Производственная практика | AR123: Г | AS123: Государственная итоговая аттестация
G125: К | H125: Каникулы | AR125: * | AS125: Неделя отсутствует
A127: 2 Сводные данные по бюджету времени
A129: Курс | B129: Обучение по дисциплинам и междисциплинарным курсам | T129: Промежуточная аттестация | AC129: Практики | AX129: ГИА | BD129: Каникулы | BG129: Всего | BJ129: Студентов | BN129: Групп
AC130: Учебная практика | AJ130: Производственная практика (по профилю специальности) | AQ130: Производственная практика (преддипломная) | AX130: Подго- товка | BA130: Прове- дение
B131: Всего | H131: 1 сем | N131: 2 сем | T131: Всего | W131: 1 сем | Z131: 2 сем | AC131: Всего | AF131: 1 сем | AH131: 2 сем | AJ131: Всего | AM131: 1 сем | AO131: 2 сем | AQ131: Всего | AT131: 1 сем | AV131: 2 сем
B132: нед. | E132: час. обяз. уч. занятий | H132: нед. | K132: час. обяз. уч. занятий | N132: нед. | Q132: час. обяз. уч. занятий | T132: нед. | W132: нед. | Z132: нед. | AC132: нед. | AF132: нед. | AH132: нед. | AJ132: нед. | AM132: нед. | AO132: нед. | AQ132: нед. | AT132: нед. | AV132: нед. | AX132: нед. | BA132: нед. | BD132: нед. | BG132: нед.
A133: I
A134: II
A135: III
A136: IV
A137: V
A138: VI
A139: VII
A140: VIII
A141: IX
A142: X
A143: XI
A144: Всего
A146: Курс | B146: Обучение по дисциплинам и междисциплинарным курсам, в том числе учебная практика | T146: Промежуточная аттестация | AC146: Практики | AQ146: ГИА | AW146: Каникулы | AZ146: Всего | BC146: Студентов | BG146: Групп
AC147: Производственная практика (по профилю специальности) | AJ147: Производственная практика (преддипломная) | AQ147: Подго- товка | AT147: Прове- дение
B148: Всего | H148: 1 сем | N148: 2 сем | T148: Всего | W148: 1 сем | Z148: 2 сем | AC148: Всего | AF148: 1 сем | AH148: 2 сем | AJ148: Всего | AM148: 1 сем | AO148: 2 сем
B149: нед. | E149: час. обяз. уч. занятий | H149: нед. | K149: час. обяз. уч. занятий | N149: нед. | Q149: час. обяз. уч. занятий | T149: нед. | W149: нед. | Z149: нед. | AC149: нед. | AF149: нед. | AH149: нед. | AJ149: нед. | AM149: нед. | AO149: нед. | AQ149: нед. | AT149: нед. | AW149: нед. | AZ149: нед.
A150: I
A151: II
A152: III
A153: IV
A154: V
A155: VI
A156: VII
A157: VIII
A158: IX
A159: X
A160: XI
A161: Всего
A163: Курс | B163: Обучение по циклам | T163: Промежуточная аттестация | AC163: Практики | AQ163: ГИА | AT163: Каникулы | AW163: Всего | AZ163: Студентов | BD163: Групп
AC164: Учебная практика (Производственное обучение) | AJ164: Производственная практика | AQ164: Прове- дение
B165: Всего | H165: 1 сем | N165: 2 сем | T165: Всего | W165: 1 сем | Z165: 2 сем | AC165: Всего | AF165: 1 сем | AH165: 2 сем | AJ165: Всего | AM165: 1 сем | AO165: 2 сем
B166: нед. | H166: нед. | N166: нед. | T166: нед. | W166: нед. | Z166: нед. | AC166: нед. | AF166: нед. | AH166: нед. | AJ166: нед. | AM166: нед. | AO166: нед. | AQ166: нед. | AT166: нед. | AW166: нед.
A167: I | B167: 33 | H167: 17 | N167: 16 | T167: 1 | Z167: 1 | AC167: 3 | AH167: 4 | AJ167: 3 | AO167: 3 | AT167: 11 | AW167: 52
A168: II | B168: 28 | H168: 13 | N168: 15 | T168: 2 | Z168: 2 | AC168: 6 | AF168: 4 | AH168: 2 | AJ168: 4 | AO168: 4 | AQ168: 1 | AT168: 2 | AW168: 43
A169: III
A170: IV
A171: V
A172: Всего | B172: 61 | H172: 30 | N172: 31 | T172: 3 | Z172: 3 | AC172: 10 | AF172: 4 | AH172: 6 | AJ172: 7 | AO172: 7 | AQ172: 1 | AT172: 13 | AW172: 95
A174: Курс | B174: Обучение по циклам и разделу "Физическая культура", в том числе учебная практика | T174: Промежуточная аттестация | AC174: Практики | AJ174: ГИА | AM174: Каникулы | AP174: Всего | AS174: Студентов | AW174: Групп
AC175: Производственная практика | AJ175: Прове- дение
B176: Всего | H176: 1 сем | N176: 2 сем | T176: Всего | W176: 1 сем | Z176: 2 сем | AC176: Всего | AF176: 1 сем | AH176: 2 сем
B177: нед. | E177: час. обяз. уч. зан. | H177: нед. | K177: час. обяз. уч. зан. | N177: нед. | Q177: час. обяз. уч. зан. | T177: нед. | W177: нед. | Z177: нед. | AC177: нед. | AF177: нед. | AH177: нед. | AJ177: нед. | AM177: нед. | AP177: нед.
A178: I
A179: II
A180: III
A181: IV
A182: V
A183: Всего

Sheet План
B1: Индекс | C1: Наименование циклов, разделов, дисциплин, профессиональных модулей, МДК, практик | D1: Формы промежуточной аттестации | J1: Учебная нагрузка обучающихся, ч. | V1: Распределение по курсам и семестрам | BR1: ЦК | BS1: Максимальная учебная нагрузка
V2: Курс 1 | AT2: Курс 2
D3: Экзамены | E3: Зачеты | F3: Диффер. зачеты | G3: Курсовые проекты | H3: Курсовые работы | I3: Другие | J3: Максимальная | K3: в т.ч. в форме практ. подготовки | L3: Самост.(с.р.+и.п.) | M3: Консультации | N3: Обязательная | T3: Промежут. аттестация | U3: Индивид. проект (входит в с.р.) | V3: Семестр 1 | AH3: Семестр 2 | AT3: Семестр 3 | BF3: Семестр 4
N4: Всего | O4: в том числе | V4: 17 нед | AH4: 16 (7 ) нед | AT4: 13 (4 ) нед | BF4: 15 (6 ) нед
O5: Лекции, уроки | P5: Пр. занятия | Q5: Лаб. занятия | R5: Cеминар. занятия | S5: Индивид. занятия | V5: Максим. | W5: в т.ч. в форме практ. подготовки | X5: Самост. | Y5: Консульт. | Z5: Обязательная | AA5: в том числе | AF5: Промежут. аттестация | AG5: Индивид. проект | AH5: Максим. | AI5: в т.ч. в форме практ. подготовки | AJ5: Самост. | AK5: Консульт. | AL5: Обязательная | AM5: в том числе | AR5: Промежут. аттестация | AS5: Индивид. проект | AT5: Максим. | AU5: в т.ч. в форме практ. подготовки | AV5: Самост. | AW5: Консульт. | AX5: Обязательная | AY5: в том числе | BD5: Промежут. аттестация | BE5: Индивид. проект | BF5: Максим. | BG5: в т.ч. в форме практ. подготовки | BH5: Самост. | BI5: Консульт. | BJ5: Обязательная | BK5: в том числе | BP5: Промежут. аттестация | BQ5: Индивид. проект | BS5: Обяз. часть | BT5: Вар. часть
AA6: Лекции, уроки | AB6: Пр.занятия | AC6: Лаб. занятия | AD6: Семинар. занятия | AE6: Индивид. занятия | AM6: Лекции, уроки | AN6: Пр.занятия | AO6: Лаб. занятия | AP6: Семинар. занятия | AQ6: Индивид. занятия | AY6: Лекции, уроки | AZ6: Пр.занятия | BA6: Лаб. занятия | BB6: Семинар. занятия | BC6: Индивид. занятия | BK6: Лекции, уроки | BL6: Пр.занятия | BM6: Лаб. занятия | BN6: Семинар. занятия | BO6: Индивид. занятия
B7: 1 | C7: 2 | D7: 3 | E7: 4 | F7: 5 | G7: 6 | H7: 7 | I7: 8 | J7: 9 | K7: 10 | L7: 11 | M7: 12 | N7: 13 | O7: 14 | P7: 15 | Q7: 16 | R7: 17 | S7: 18 | T7: 19 | U7: 20 | V7: 21 | W7: 22 | X7: 23 | Y7: 24 | Z7: 25 | AA7: 26 | AB7: 27 | AC7: 28 | AD7: 29 | AE7: 30 | AF7: 31 | AG7: 32 | AH7: 33 | AI7: 34 | AJ7: 35 | AK7: 36 | AL7: 37 | AM7: 38 | AN7: 39 | AO7: 40 | AP7: 41 | AQ7: 42 | AR7: 43 | AS7: 44 | AU7: 46 | AV7: 47 | AW7: 48 | AX7: 49 | AY7: 50 | AZ7: 51 | BA7: 52 | BB7: 53 | BC7: 54 | BD7: 55 | BE7: 56 | BF7: 57 | BG7: 58 | BH7: 59 | BI7: 60 | BJ7: 61 | BK7: 62 | BL7: 63 | BM7: 64 | BN7: 65 | BO7: 66 | BP7: 67 | BQ7: 68 | BR7: 69 | BS7: 70 | BT7: 71
A8: 1
A9: 2 | C9: Итого час/нед (с учетом консультаций в период обучения по циклам) | V9: 36 | Z9: 36 | AH9: 36 | AL9: 36 | AT9: 36 | AX9: 36 | BF9: 36 | BJ9: 36
A10: 3 | B10: ОД | C10: ОБЩЕОБРАЗОВАТЕЛЬНЫЙ ЦИКЛ
A11: 4
A12: 5 | B12: ОДБ | C12: Базовые дисциплины
A13: 6 | B13: *
A14: 7
A15: 8 | B15: ОДП | C15: Профильные дисциплины
A16: 9 | B16: *
A17: 10
A18: 11 | B18: ПОО | C18: Предлагаемые ОО
A19: 12 | B19: *
A20: 13
A21: 14 | BS21: 79,01% | BT21: 20,99%
A22: 15 | B22: ПП | C22: Профессиональная подготовка | D22: 5 | F22: 28 | J22: 2916 | K22: =SUM(K24,K36) -> 2045 | L22: 26 | M22: 52 | N22: 2808 | O22: 763 | P22: 1433 | T22: 30 | V22: 612 | W22: =SUM(W24,W36) -> 358 | Z22: 612 | AA22: 254 | AB22: 358 | AH22: 864 | AI22: =SUM(AI24,AI36) -> 646 | AK22: 24 | AL22: 828 | AM22: 182 | AN22: 394 | AR22: 12 | AT22: 612 | AU22: =SUM(AU24,AU36) -> 451 | AX22: 612 | AY22: 161 | AZ22: 307 | BF22: 828 | BG22: =SUM(BG36,BG24) -> 590 | BH22: 26 | BI22: 28 | BJ22: 756 | BK22: 166 | BL22: 374 | BP22: 18 | BS22: 2304 | BT22: 612
A23: 16
A24: 17 | B24: ОП | C24: Общепрофессиональный цикл | D24: 1 | F24: 14 | J24: 578 | K24: =SUM(K25:K33) -> 382 | L24: 6 | M24: 6 | N24: 560 | O24: 178 | P24: 382 | T24: 6 | V24: 332 | W24: =SUM(W25:W33) -> 190 | Z24: 332 | AA24: 142 | AB24: 190 | AH24: 108 | AI24: =SUM(AI25:AI33) -> 108 | AL24: 108 | AN24: 108 | AT24: 84 | AU24: =SUM(AU25:AU33) -> 48 | AX24: 84 | AY24: 36 | AZ24: 48 | BF24: 54 | BG24: =SUM(BG25:BG33) -> 36 | BH24: 6 | BI24: 6 | BJ24: 36 | BL24: 36 | BP24: 6 | BS24: 342 | BT24: 236
A25: 18 | B25: ОП.01 | C25: Основы материаловедения | F25: 1 | J25: 54 | K25: =SUM(P25,Q25) -> 20 | N25: 54 | O25: 34 | P25: 20 | V25: 54 | W25: =SUM(AB25,AC25) -> 20 | Z25: 54 | AA25: 34 | AB25: 20 | AI25: =SUM(AN25,AO25) -> 0 | AU25: =SUM(AZ25,BA25) -> 0 | BG25: =SUM(BM25,BL25) -> 0 | BS25: 54
A26: 19 | B26: ОП.02 | C26: Безопасность жизнедеятельности | F26: 3 | J26: 52 | K26: =SUM(P26,Q26) -> 16 | N26: 52 | O26: 36 | P26: 16 | W26: =SUM(AB26,AC26) -> 0 | AI26: =SUM(AN26,AO26) -> 0 | AT26: 52 | AU26: =SUM(AZ26,BA26) -> 16 | AX26: 52 | AY26: 36 | AZ26: 16 | BG26: =SUM(BM26,BL26) -> 0 | BS26: 36 | BT26: 16
A27: 20 | B27: ОП.03 | C27: История дизайна | F27: 1 | J27: 48 | K27: 12 | N27: 48 | O27: 36 | P27: 12 | V27: 48 | W27: 12 | Z27: 48 | AA27: 36 | AB27: 12 | AI27: 0 | AU27: 0 | BG27: 0 | BS27: 40 | BT27: 8
A28: 21 | B28: ОП.04 | C28: Основы дизайна и композиции | F28: 1 | J28: 66 | K28: 22 | N28: 66 | O28: 44 | P28: 22 | V28: 66 | W28: 22 | Z28: 66 | AA28: 44 | AB28: 22 | AI28: 0 | AU28: 0 | BG28: 0 | BS28: 36 | BT28: 30
A29: 22 | B29: ОП.05 | C29: Основы экономической деятельности | F29: 1 | J29: 44 | K29: 18 | N29: 44 | O29: 26 | P29: 18 | V29: 44 | W29: 18 | Z29: 44 | AA29: 26 | AB29: 18 | AI29: 0 | AU29: 0 | BG29: 0 | BS29: 36 | BT29: 8
A30: 23 | B30: ОП.06 | C30: Иностранный язык в профессиональной деятельности | D30: 4 | F30: 2 | J30: 118 | K30: 100 | L30: 6 | M30: 6 | N30: 100 | P30: 100 | T30: 6 | V30: 34 | W30: 34 | Z30: 34 | AB30: 34 | AH30: 20 | AI30: 20 | AL30: 20 | AN30: 20 | AT30: 20 | AU30: 20 | AX30: 20 | AZ30: 20 | BF30: 44 | BG30: 26 | BH30: 6 | BI30: 6 | BJ30: 26 | BL30: 26 | BP30: 6 | BS30: 100 | BT30: 18
A31: 24 | B31: ОП.07 | C31: Физическая культура | F31: 1-4 | J31: 56 | K31: 54 | N31: 56 | O31: 2 | P31: 54 | V31: 18 | W31: 16 | Z31: 18 | AA31: 2 | AB31: 16 | AH31: 16 | AI31: 16 | AL31: 16 | AN31: 16 | AT31: 12 | AU31: 12 | AX31: 12 | AZ31: 12 | BF31: 10 | BG31: 10 | BJ31: 10 | BL31: 10 | BS31: 40 | BT31: 16
A32: 25 | B32: ОП.08 | C32: Рисунок с основами перспективы | F32: 12 | J32: 70 | K32: 70 | N32: 70 | P32: 70 | V32: 34 | W32: 34 | Z32: 34 | AB32: 34 | AH32: 36 | AI32: 36 | AL32: 36 | AN32: 36 | AU32: 0 | BG32: 0 | BT32: 70
A33: 26 | B33: ОП.09 | C33: Живопись с основами цветоведения | F33: 12 | J33: 70 | K33: 70 | N33: 70 | P33: 70 | V33: 34 | W33: =SUM(AB33,AC33) -> 34 | Z33: 34 | AB33: 34 | AH33: 36 | AI33: 36 | AL33: 36 | AN33: 36 | AU33: 0 | BG33: 0 | BT33: 70
A34: 27 | B34: *
A35: 28
A36: 29 | B36: ПЦ | C36: Профессиональный цикл | D36: 4 | F36: 14 | J36: 2338 | K36: =SUM(K38,K53,K70,K84) -> 1663 | L36: 20 | M36: 46 | N36: 2248 | O36: 585 | P36: 1051 | T36: 24 | V36: 280 | W36: =SUM(W38,W53,W70,W84) -> 168 | Z36: 280 | AA36: 112 | AB36: 168 | AH36: 756 | AI36: =SUM(AI38,AI53,AI70,AI84) -> 538 | AK36: 24 | AL36: 720 | AM36: 182 | AN36: 286 | AR36: 12 | AT36: 528 | AU36: =SUM(AU38,AU53,AU70,AU84) -> 403 | AX36: 528 | AY36: 125 | AZ36: 259 | BF36: 774 | BG36: =SUM(BG38,BG53,BG70,BG84) -> 554 | BH36: 20 | BI36: 22 | BJ36: 720 | BK36: 166 | BL36: 338 | BP36: 12 | BS36: 1962 | BT36: 376
A37: 30
A38: 31 | B38: ПМ.01 | C38: Разработка технического задания на продукт графического дизайна | D38: 1 | F38: 3 | J38: 468 | K38: =SUM(P40,Q40,P41,Q41,N44,N47) -> 302 | M38: 12 | N38: 450 | O38: 148 | P38: 158 | T38: 6 | V38: 144 | W38: =SUM(AB40,AC40,AB41,AC41,Z44,Z47) -> 72 | Z38: 144 | AA38: 72 | AB38: 72 | AH38: 360 | AI38: =SUM(AN40,AO40,AN41,AO41,AL44,AL47) -> 230 | AK38: 12 | AL38: 306 | AM38: 76 | AN38: 86 | AR38: 6 | AU38: =SUM(AZ40,BA40,AZ41,BA41,AX44,AX47) -> 0 | BG38: =SUM(BL40,BM40,BL41,BM41,BJ44,BJ47) -> 0 | BS38: 471 | BT38: 33
A39: 32
A40: 33 | B40: МДК.01.01 | C40: Дизайн - проектирование | F40: 2 | J40: 158 | M40: 6 | N40: 152 | O40: 74 | P40: 78 | V40: 64 | Z40: 64 | AA40: 32 | AB40: 32 | AH40: 94 | AK40: 6 | AL40: 88 | AM40: 42 | AN40: 46 | BS40: 134 | BT40: 24
A41: 34 | B41: МДК.01.02 | C41: Проектная графика | F41: 2 | J41: 160 | M41: 6 | N41: 154 | O41: 74 | P41: 80 | V41: 80 | Z41: 80 | AA41: 40 | AB41: 40 | AH41: 80 | AK41: 6 | AL41: 74 | AM41: 34 | AN41: 40 | BS41: 151 | BT41: 9
A42: 35 | B42: МДК*
A43: 36
A44: 37 | B44: УП.01.01 | C44: Учебная практика | F44: 2 | G44: РП | I44: час | J44: 108 | N44: 108 | O44: нед | P44: 3 | V44: час | AA44: нед | AH44: час | AL44: 108 | AM44: нед | AN44: 3 | AT44: час | AY44: нед | BF44: час | BK44: нед | BS44: 108
A45: 38 | B45: УП*
A46: 39
A47: 40 | B47: ПП.01.01 | C47: Производственная практика | G47: РП | I47: час | J47: 36 | N47: 36 | O47: нед | P47: 1 | V47: час | AA47: нед | AH47: час | AL47: 36 | AM47: нед | AN47: 1 | AT47: час | AY47: нед | BF47: час | BK47: нед | BS47: 72
A48: 41 | B48: ПП*
A49: 42
A50: 43 | B50: ПM.01.ЭК | C50: Квалификационный экзамен | D50: 2 | J50: 6 | T50: 6 | AH50: 6 | AR50: 6 | BS50: 6
A51: 44 | C51: Всего часов по МДК | J51: 318 | N51: 306
A52: 45
A53: 46 | B53: ПМ.02 | C53: Создание графических дизайн –макетов | D53: 1 | F53: 6 | J53: 1108 | K53: =SUM(P55,Q55,P56,Q56,P57,Q57,P58,Q58,N61,N64) -> 791 | L53: 16 | M53: 16 | N53: 1070 | O53: 279 | P53: 539 | T53: 6 | W53: =SUM(AB55,AC55,AB56,AC56,AB57,AC57,AB58,AC58,Z61,Z64) -> 0 | AH53: 182 | AI53: =SUM(AN55,AO55,AN56,AO56,AN57,AO57,AN58,AO58,AL61,AL64) -> 128 | AL53: 182 | AM53: 54 | AN53: 92 | AT53: 322 | AU53: =SUM(AZ55,BA55,AZ56,BA56,AZ57,BA57,AZ58,BA58,AX61,AX64) -> 233 | AX53: 322 | AY53: 89 | AZ53: 161 | BF53: 604 | BG53: =SUM(BL55,BM55,BL56,BM56,BL57,BM57,BL58,BM58,BJ61,BJ64) -> 430 | BH53: 16 | BI53: 16 | BJ53: 566 | BK53: 136 | BL53: 286 | BP53: 6 | BS53: 862 | BT53: 210
A54: 47
A55: 48 | B55: МДК.02.01 | C55: Фирменный стиль и корпоративный дизайн | F55: 4 | J55: 238 | L55: 4 | M55: 4 | N55: 230 | O55: 82 | P55: 148 | AH55: 38 | AL55: 38 | AM55: 8 | AN55: 30 | AT55: 66 | AX55: 66 | AY55: 30 | AZ55: 36 | BF55: 134 | BH55: 4 | BI55: 4 | BJ55: 126 | BK55: 44 | BL55: 82 | BS55: 152 | BT55: 86
A56: 49 | B56: МДК.02.02 | C56: Информационный дизайн и медиа | F56: 4 | J56: 208 | L56: 4 | M56: 4 | N56: 200 | O56: 70 | P56: 130 | AH56: 38 | AL56: 38 | AM56: 14 | AN56: 24 | AT56: 52 | AX56: 52 | AY56: 18 | AZ56: 34 | BF56: 118 | BH56: 4 | BI56: 4 | BJ56: 110 | BK56: 38 | BL56: 72 | BS56: 178 | BT56: 30
A57: 50 | B57: МДК.02.03 | C57: Многостраничный дизайн | F57: 4 | J57: 188 | L57: 4 | M57: 4 | N57: 180 | O57: 63 | P57: 117 | AH57: 36 | AL57: 36 | AM57: 18 | AN57: 18 | AT57: 50 | AX57: 50 | AY57: 15 | AZ57: 35 | BF57: 102 | BH57: 4 | BI57: 4 | BJ57: 94 | BK57: 30 | BL57: 64 | BS57: 142 | BT57: 46
A58: 51 | B58: МДК.02.04 | C58: Дизайн упаковки | F58: 4 | J58: 216 | L58: 4 | M58: 4 | N58: 208 | O58: 64 | P58: 144 | AH58: 34 | AL58: 34 | AM58: 14 | AN58: 20 | AT58: 82 | AX58: 82 | AY58: 26 | AZ58: 56 | BF58: 100 | BH58: 4 | BI58: 4 | BJ58: 92 | BK58: 24 | BL58: 68 | BS58: 168 | BT58: 48
A59: 52 | B59: МДК*
A60: 53
A61: 54 | B61: УП.02.01 | C61: Учебная практика | F61: 3 | G61: РП | I61: час | J61: 144 | N61: 144 | O61: нед | P61: 4 | V61: час | AA61: нед | AH61: час | AL61: 36 | AM61: нед | AN61: 1 | AT61: час | AX61: 72 | AY61: нед | AZ61: 2 | BF61: час | BJ61: 36 | BK61: нед | BL61: 1 | BS61: 108
A62: 55 | B62: УП*
A63: 56
A64: 57 | B64: ПП.02.01 | C64: Производственная практика | F64: 4 | G64: РП | I64: час | J64: 108 | N64: 108 | O64: нед | P64: 3 | V64: час | AA64: нед | AH64: час | AM64: нед | AT64: час | AY64: нед | BF64: час | BJ64: 108 | BK64: нед | BL64: 3 | BS64: 108
A65: 58 | B65: ПП*
A66: 59
A67: 60 | B67: ПM.02.ЭК | C67: Квалификационный экзамен | D67: 4 | J67: 6 | T67: 6 | BF67: 6 | BP67: 6 | BS67: 6
A68: 61 | C68: Всего часов по МДК | J68: 850 | N68: 818
A69: 62
A70: 63 | B70: ПМ.03 | C70: Подготовка дизайн - макета к печати (публикации) | D70: 1 | F70: 2 | J70: 376 | K70: =SUM(P72,Q72,N75,N78) -> 294 | L70: 4 | M70: 6 | N70: 360 | O70: 66 | P70: 150 | T70: 6 | W70: =SUM(AB72,AC72,Z75,Z78) -> 0 | AI70: =SUM(AN72,AO72,AL75,AL78) -> 0 | AT70: 206 | AU70: =SUM(AZ72,BA72,AX75,AX78) -> 170 | AX70: 206 | AY70: 36 | AZ70: 98 | BF70: 170 | BG70: =SUM(BL72,BM72,BJ75,BJ78) -> 124 | BH70: 4 | BI70: 6 | BJ70: 154 | BK70: 30 | BL70: 52 | BP70: 6 | BS70: 244 | BT70: 132
A71: 64
A72: 65 | B72: МДК.03.01 | C72: Финальная сборка дизайн - макетов и подготовка их к печати типографии, к публикации | F72: 4 | J72: 226 | L72: 4 | M72: 6 | N72: 216 | O72: 66 | P72: 150 | AT72: 134 | AX72: 134 | AY72: 36 | AZ72: 98 | BF72: 92 | BH72: 4 | BI72: 6 | BJ72: 82 | BK72: 30 | BL72: 52 | BS72: 202 | BT72: 24
A73: 66 | B73: МДК*
A74: 67
A75: 68 | B75: УП.03.01 | C75: Учебная практика | F75: 4 | G75: РП | I75: час | J75: 108 | N75: 108 | O75: нед | P75: 3 | V75: час | AA75: нед | AH75: час | AM75: нед | AT75: час | AX75: 72 | AY75: нед | AZ75: 2 | BF75: час | BJ75: 36 | BK75: нед | BL75: 1 | BS75: 36 | BT75: 72
A76: 69 | B76: УП*
A77: 70
A78: 71 | B78: ПП.03.01 | C78: Производственная практика | G78: РП | I78: час | J78: 36 | N78: 36 | O78: нед | P78: 1 | V78: час | AA78: нед | AH78: час | AM78: нед | AT78: час | AY78: нед | BF78: час | BJ78: 36 | BK78: нед | BL78: 1 | BT78: 36
A79: 72 | B79: ПП*
A80: 73
A81: 74 | B81: ПM.03.ЭК | C81: Квалификационный экзамен | D81: 4 | J81: 6 | T81: 6 | BF81: 6 | BP81: 6 | BS81: 6
A82: 75 | C82: Всего часов по МДК | J82: 226 | N82: 216
A83: 76
A84: 77 | B84: ПМ.04 | C84: Организация личного профессионального развития и обучения на рабочем месте | D84: 1 | F84: 3 | J84: 386 | K84: =SUM(P86,Q86,P87,Q87,N92) -> 276 | M84: 12 | N84: 368 | O84: 92 | P84: 204 | T84: 6 | V84: 136 | W84: =SUM(AB86,AC86,AB87,AC87,Z92) -> 96 | Z84: 136 | AA84: 40 | AB84: 96 | AH84: 250 | AI84: =SUM(AN86,AO86,AN87,AO87,AL92) -> 180 | AK84: 12 | AL84: 232 | AM84: 52 | AN84: 108 | AR84: 6 | AU84: =SUM(AZ86,BA86,AZ87,BA87,AX92) -> 0 | BG84: =SUM(BL86,BM86,BL87,BM87,BJ92) -> 0 | BS84: 385 | BT84: 1
A85: 78
A86: 79 | B86: МДК.04.01 | C86: Основы менеджмента и планирование профессиональной деятельности | F86: 2 | J86: 152 | M86: 6 | N86: 146 | O86: 46 | P86: 100 | V86: 74 | Z86: 74 | AA86: 20 | AB86: 54 | AH86: 78 | AK86: 6 | AL86: 72 | AM86: 26 | AN86: 46 | BS86: 152
A87: 80 | B87: МДК.04.02 | C87: Психология и этика профессиональной деятельности | F87: 2 | J87: 156 | M87: 6 | N87: 150 | O87: 46 | P87: 104 | V87: 62 | Z87: 62 | AA87: 20 | AB87: 42 | AH87: 94 | AK87: 6 | AL87: 88 | AM87: 26 | AN87: 62 | BS87: 155 | BT87: 1
A88: 81 | B88: МДК*
A89: 82
A90: 83 | B90: УП*
A91: 84
A92: 85 | B92: ПП.04.01 | C92: Производственная практика | F92: 2 | G92: РП | I92: час | J92: 72 | N92: 72 | O92: нед | P92: 2 | V92: час | AA92: нед | AH92: час | AL92: 72 | AM92: нед | AN92: 2 | AT92: час | AY92: нед | BF92: час | BK92: нед | BS92: 72
A93: 86 | B93: ПП*
A94: 87
A95: 88 | B95: ПM.04.ЭК | C95: Квалификационный экзамен | D95: 2 | J95: 6 | T95: 6 | AH95: 6 | AR95: 6 | BS95: 6
A96: 89 | C96: Всего часов по МДК | J96: 308 | N96: 296
A97: 90
A98: 91 | B98: ПМ*
A99: 92
A100: 93 | C100: Учебная и производственная практики | I100: час | J100: 612 | N100: 612 | O100: нед | P100: 17 | V100: час | AA100: нед | AH100: час | AL100: 252 | AM100: нед | AN100: 7 | AT100: час | AX100: 144 | AY100: нед | AZ100: 4 | BF100: час | BJ100: 216 | BK100: нед | BL100: 6
A101: 94
A102: 95 | C102: Учебная практика | I102: час | J102: 360 | N102: 360 | O102: нед | P102: 10 | V102: час | AA102: нед | AH102: час | AL102: 108 | AM102: нед | AN102: 4 | AT102: час | AX102: 144 | AY102: нед | AZ102: 4 | BF102: час | BJ102: 72 | BK102: нед | BL102: 2
A103: 96 | C103: Концентрированная | I103: час | J103: 360 | N103: 360 | O103: нед | P103: 10 | V103: час | AA103: нед | AH103: час | AL103: 108 | AM103: нед | AN103: 4 | AT103: час | AX103: 144 | AY103: нед | AZ103: 4 | BF103: час | BJ103: 72 | BK103: нед | BL103: 2
A104: 97 | C104: Рассредоточенная | I104: час | O104: нед | V104: час | AA104: нед | AH104: час | AM104: нед | AT104: час | AY104: нед | BF104: час | BK104: нед
A105: 98
A106: 99 | C106: Производственная практика | I106: час | J106: 252 | N106: 252 | O106: нед | P106: 7 | V106: час | AA106: нед | AH106: час | AL106: 144 | AM106: нед | AN106: 3 | AT106: час | AY106: нед | BF106: час | BJ106: 144 | BK106: нед | BL106: 4
A107: 100 | C107: Концентрированная | I107: час | J107: 252 | N107: 252 | O107: нед | P107: 7 | V107: час | AA107: нед | AH107: час | AL107: 144 | AM107: нед | AN107: 3 | AT107: час | AY107: нед | BF107: час | BJ107: 144 | BK107: нед | BL107: 4
A108: 101 | C108: Рассредоточенная | I108: час | O108: нед | V108: час | AA108: нед | AH108: час | AM108: нед | AT108: час | AY108: нед | BF108: час | BK108: нед
A109: 102
A110: 103 | C110: Государственная итоговая аттестация | I110: час | J110: 36 | N110: 36 | O110: нед | P110: 1 | V110: час | AA110: нед | AH110: час | AM110: нед | AT110: час | AY110: нед | BF110: час | BJ110: 36 | BK110: нед | BL110: 1
A111: 104 | I111: час | O111: нед | V111: час | AA111: нед | AH111: час | AM111: нед | AT111: час | AY111: нед | BF111: час | BK111: нед
A112: 105 | C112: Защита выпускной квалификационной работы в виде демонстрационного экзамена | I112: час | J112: 36 | N112: 36 | O112: нед | P112: 1 | V112: час | AA112: нед | AH112: час | AM112: нед | AT112: час | AY112: нед | BF112: час | BJ112: 36 | BK112: нед | BL112: 1 | BS112: 36
A113: 106
A114: 107 | C114: КОНСУЛЬТАЦИИ по О
A115: 108 | C115: в т.ч. в период обучения по циклам
A116: 109
A117: 110 | C117: КОНСУЛЬТАЦИИ по ПП | J117: 52 | AH117: 24 | BF117: 28
A118: 111 | C118: в т.ч. в период обучения по циклам | J118: 52 | AH118: 24 | BF118: 28
A119: 112
A120: 113 | C120: ОБЪЕМ ОБРАЗОВАТЕЛЬНОЙ ПРОГРАММЫ В АКАДЕМИЧЕСКИХ ЧАСАХ | D120: 5 | F120: 28 | J120: 2952 | K120: =K22 -> 2045 | L120: 26 | M120: 52 | N120: 2844 | O120: 763 | P120: 1433 | T120: 30 | V120: 612 | W120: =W22 -> 358 | Z120: 612 | AA120: 254 | AB120: 358 | AH120: 864 | AI120: =AI22 -> 646 | AK120: 24 | AL120: 828 | AM120: 182 | AN120: 394 | AR120: 12 | AT120: 612 | AU120: =AU22 -> 451 | AX120: 612 | AY120: 161 | AZ120: 307 | BF120: 864 | BG120: =BG22 -> 590 | BH120: 26 | BI120: 28 | BJ120: 792 | BK120: 166 | BL120: 374 | BP120: 18 | BS120: 2340 | BT120: 612
A121: 114
A122: 115 | C122: Экзамены (без учета физ. культуры) | AH122: 2 | BF122: 3
A123: 116 | C123: Зачеты (без учета физ. культуры)
A124: 117 | C124: Диффер. зачеты (без учета физ. культуры) | V124: 3 | AH124: 6 | AT124: 2 | BF124: 6
A125: 118 | C125: Курсовые проекты (без учета физ. культуры)
A126: 119 | C126: Курсовые работы (без учета физ. культуры)

Sheet Комплесные
B1: № | C1: Вид контроля | D1: Наименование комплексного вида контроля | E1: Семестр | G1: [Семестр проведения комплексного вида контроля] Наименование дисциплины/МДК
B2: 1 | C2: Диф. зач | D2: Комплексный диф. зачет | E2: 1 | F2: 12 | G2: [1] | H2: ОП.08 Рисунок с основами перспективы
F3: 12 | G3: [1] | H3: ОП.09 Живопись с основами цветоведения
B6: 2 | C6: Диф. зач | D6: Комплексный диф. зачет | E6: 2 | F6: 12 | G6: [2] | H6: ОП.08 Рисунок с основами перспективы
F7: 12 | G7: [2] | H7: ОП.09 Живопись с основами цветоведения
B10: 3 | C10: Диф. зач | D10: Комплексный диф. зачет | E10: 2 | F10: 2 | G10: [2] | H10: МДК.01.01 Дизайн - проектирование
F11: 2 | G11: [2] | H11: МДК.01.02 Проектная графика
B14: 4 | C14: Диф. зач | D14: Комплексный диф. зачет | E14: 4 | F14: 4 | G14: [4] | H14: МДК.03.01 Финальная сборка дизайн - макетов и подготовка их к печати типографии, к публикации
F15: 4 | G15: [4] | H15: УП.03.01 Учебная практика
B18: 5 | C18: Диф. зач | D18: Комплексный диф. зачет | E18: 2 | F18: 2 | G18: [2] | H18: МДК.04.01 Основы менеджмента и планирование профессиональной деятельности
F19: 2 | G19: [2] | H19: МДК.04.02 Психология и этика профессиональной деятельности
B22: 6 | C22: Диф. зач | D22: Комплексный диф. зачет | E22: 1 | F22: 1 | G22: [1] | H22: ОП.03 История дизайна
F23: 1 | G23: [1] | H23: ОП.04 Основы дизайна и композиции
F24: 1 | G24: [1] | H24: ОП.01 Основы материаловедения

Sheet Компетенции
A1: Индекс | E1: Содержание
A2: ОК 01. | D2: 1 | E2: Выбирать способы решения задач профессиональной деятельности, применительно к различным контекстам.
D3: 2
D4: 3
D5: 4
D6: 5
D7: 6
D8: 7
D9: 8
D10: 9
D11: 10
D12: 11
D13: 12
D14: 13
D15: 14
D16: 15
D17: 16
D18: 17
D19: 18
D20: 19
D21: 20
D22: 21
D23: 22
D24: 23
D25: 24
D26: 25
D27: 26
D28: 27
D29: 28
D30: 29
D31: 30
D32: 31
D33: 32
D34: 33
D35: 34
D36: 35
D37: 36
D38: 37
D39: 38
D40: 39
D41: 40
D42: 41
D43: 42
D44: 43
D45: 44
D46: 45
D47: 46
D48: 47
D49: 48
D50: 49
D51: 50
D52: 51
D53: 52
D54: 53
D55: 54
D56: 55
D57: 56
D58: 57
D59: 58
D60: 59
D61: 60
D62: 61
D63: 62
D64: 63
D65: 64
D66: 65
D67: 66
D68: 67
D69: 68
D70: 69
D71: 70
D72: 71
D73: 72
D74: 73
D75: 74
D76: 75
D77: 76
D78: 77
D79: 78
D80: 79
D81: 80
D82: 81
A83: ОК 02. | D83: 1 | E83: Осуществлять поиск, анализ и интерпретацию информации, необходимой для выполнения задач профессиональной деятельности.
D84: 2
D85: 3
D86: 4
D87: 5
D88: 6
D89: 7
D90: 8
D91: 9
D92: 10
D93: 11
D94: 12
D95: 13
D96: 14
D97: 15
D98: 16
D99: 17
D100: 18
D101: 19
D102: 20
D103: 21
D104: 22
D105: 23
D106: 24
D107: 25
D108: 26
D109: 27
D110: 28
D111: 29
D112: 30
D113: 31
D114: 32
D115: 33
D116: 34
D117: 35
D118: 36
D119: 37
D120: 38
D121: 39
D122: 40
D123: 41
D124: 42
D125: 43
D126: 44
D127: 45
D128: 46
D129: 47
D130: 48
D131: 49
D132: 50
D133: 51
D134: 52
D135: 53
D136: 54
D137: 55
D138: 56
D139: 57
D140: 58
D141: 59
D142: 60
D143: 61
D144: 62
D145: 63
D146: 64
D147: 65
D148: 66
D149: 67
D150: 68
D151: 69
D152: 70
D153: 71
D154: 72
D155: 73
D156: 74
D157: 75
D158: 76
D159: 77
D160: 78
D161: 79
D162: 80
D163: 81
A164: ОК 03. | D164: 1 | E164: Планировать и реализовывать собственное профессиональное и личностное развитие.
D165: 2
D166: 3
D167: 4
D168: 5
D169: 6
D170: 7
D171: 8
D172: 9
D173: 10
D174: 11
D175: 12
D176: 13
D177: 14
D178: 15
D179: 16
D180: 17
D181: 18
D182: 19
D183: 20
D184: 21
D185: 22
D186: 23
D187: 24
D188: 25
D189: 26
D190: 27
D191: 28
D192: 29
D193: 30
D194: 31
D195: 32
D196: 33
D197: 34
D198: 35
D199: 36
D200: 37
... 1907 more rows

Sheet Кабинеты
B1: № | C1: Наименование
C2: Кабинеты:
B3: 1 | C3: социально-экономических дисциплин
B4: 2 | C4: иностранного языка
B5: 3 | C5: компьютерных (информационных) технологий
B6: 4 | C6: безопасности жизнедеятельности
C7: Лаборатории:
B8: 1 | C8: материаловедения
B9: 2 | C9: живописи и дизайна
B10: 3 | C10: художественно-конструкторского проектирования
B11: 4 | C11: мультимедийных технологий
B12: 5 | C12: графических работ и макетирования
B13: 6 | C13: макетирования и 3D-моделирования
C14: Мастерские:
B15: 1 | C15: учебно-производственная мастерская (печатных процессов)
C16: Спортивный комплекс :
B17: 1 | C17: спортивный зал и спортивная площадка
C18: Залы:
B19: 1 | C19: библиотека, читальный зал с выходом в сеть Интернет
B20: 2 | C20: актовый зал

Sheet Пояснения
B1: Пояснения
B2: Пояснения
B3: 1. Настоящий учебный план программы подготовки квалифицированных рабочих, служащих среднего профессионального образования Санкт-Петербургского государственного бюджетного профессионального образовательного учреждения «Петровский колледж» (далее - ОУ) разработан на основе Федерального государственного образовательного стандарта среднего профессионального образования (далее – СПО) по специальности 54.01.20 «Графический дизайнер», утвержденного приказом Министерства образования и науки Российской Федерации от 9 декабря 2016 года № 1543, зарегистрированного Министерством юстиции России 23 декабря 2016 года, рег. № 44916 с учетом примерной основной образовательной программы и в соответствии со следующими нормативно-правовыми и регламентирующими документами: - Федерального закона от 29 декабря 2012 г. №273-ФЗ «Об образовании в Российской Федерации»; - Приказ Минобрнауки России от 14 июня 2013 г. № 464 «Об утверждении Порядка организации и осуществления образовательной деятельности по образовательным программам среднего профессионального образования» (зарегистрирован Министерством юстиции Российской Федерации 30 июля 2013 г., регистрационный № 29200) (далее - Порядок организации образовательной деятельности); - Приказ Минобрнауки России от 28 мая 2014 г. № 594 «Об утверждении Порядка разработки примерных основных образовательных программ, проведения их экспертизы и ведения реестра примерных основных образовательных программ»; - Приказ Минобрнауки России от 9 декабря 2016 года № 1543 «Об утверждении федерального государственного образовательного стандарта среднего профессионального образования по професси 54.01.20 «Графический дизайнер» (зарегистрированный Министерством юстиции Российской Федерации 12 декабря 2016 г., регистрационный №44662); - Приказ Минобрнауки России от 16 августа 2013 г. № 968 «Об утверждении Порядка проведения государственной итоговой аттестации по образовательным программам среднего профессионального образования» (зарегистрирован Министерством юстиции Российской Федерации 1 ноября 2013 г., регистрационный № 30306); - Приказ Минобрнауки России от 18 апреля 2013 г. № 291 «Об утверждении Положения о практике обучающихся, осваивающих основные профессиональные образовательные программы среднего профессионального образования» (зарегистрирован Министерством юстиции Российской Федерации 14 июня 2013 г., регистрационный № 28785); - Приказ Министерства труда и социальной защиты Российской Федерации от 17 января 2017 года № 40н «Об утверждении профессионального стандарта 11.013 Графический дизайнер»(зарегистрирован Министерством юстиции Российской Федерации 27 января 2017 года, регистрационный № 45442); - Письмо Минобрнауки России от 17.03.2015 N 06-259 «О направлении доработанных рекомендаций по организации получения среднего общего образования в пределах освоения образовательных программ среднего профессионального образования на базе основного общего образования с учетом требований федеральных государственных образовательных стандартов и получаемой профессии или специальности среднего профессионального образования; - Приказ Минобрнауки России № 885, Минпросвещения России № 390 от 5 августа 2020 г. «О практической подготовке обучающихся» (вместе с «Положением о практической под-готовке обучающихся»; - Приказ Минпросвещения России № 747 от 17 декабря 2020 г "О внесени изменений в федеральные государственные образовательные стандарты среднего профессионального образования - уставом и локальными актами ОУ.
B4: 2. Организация учебного процесса и режим занятий: - учебный год начинается 1 сентября и заканчивается в соответствии с «Планом учебного процесса» и расписанием занятий на учебный год; - продолжительность учебной недели – шесть дней; - для всех видов аудиторных занятий академический час составляет 45 минут; - максимальный объем учебной нагрузки обучающихся составляет 36 академических часа в неделю, включая все виды аудиторной работы.
B5: 3. Вариативная часть программы подготовки квалифицированных рабочих, служащих среднего профессионального образования (далее – ППКРС) согласно ФГОС составляет 612 часов и распределяется следующим образом: - увеличен объем общепрофессиональных дисциплин на 236 часов, - увеличен объем профессиональных модулей на 376 часов.
B6: 4. Основными видами оценки качества обучения являются текущий контроль, промежуточная аттестация и итоговая аттестация. Текущий контроль проводится преподавателем исходя из методической целесообразности, специфики учебной дисциплины, междисциплинарного курса в форме контрольной работы, тестирования, опроса, выполнения и защиты практических и лабораторных работы, выполнения рефератов (докладов), подготовка презентаций и т.д. Промежуточная аттестация проводится с целью определения соответствия уровня и качества подготовки обучающегося требованиям к результатам освоения ППКРС и осуществляется в двух основных направлениях: - оценка уровня освоения дисциплин и междисциплинарных курсов; - оценка компетенций обучающихся. Основными формами промежуточной аттестации являются:с учетом времени на промежуточную аттестацию (Э): - экзамен по дисциплине; - экзамен по междисциплинарному курсу; - комплексный экзамен по 2 и более учебным дисциплинам; - комплексный экзамен по 2 и более междисциплинарным курсам; - экзамен (квалификационный) по профессиональному модулю; без учета времени на промежуточную аттестацию (З, ДЗ): - зачет по дисциплине; - комплексный зачет по 2 и более дисциплинам; - дифференцированный зачет по дисциплине; - комплексный дифференцированный зачет по 2 и более дисциплинам; - зачет по междисциплинарному курсу; - комплексный зачет по 2 и более междисциплинарным курсам; - дифференцированный зачет по междисциплинарному курсу; - комплексный дифференцированный зачет по 2 и более междисциплинарным курсам; - зачет/дифференцированный зачет по учебной / производственной практике; - комплексный зачет/дифференцированный зачет по учебной / производственной практике по 2 и более профессиональным модулям. Экзамен (квалификационный) по профессиональному модулю, который носит комплексный характер и направлен на проверку сформированности компетенций и готовности к выполнению основного вида деятельности, определенных в разделе «Требования к результатам освоения образовательной программы» федерального государственного образовательного стандарта (далее – ФГОС). Итогом проверки является оценка "отлично", "хорошо", "удовлетворительно" или "неудовлетворительно", на основании которой принимается решение: «основной вид деятельности освоен / не освоен». Государственная итоговая аттестация осуществляется в виде демонстрационного экзамена. Необходимым условием допуска к ней является освоение профессиональных модулей настоящего учебного плана соответствующих основным видам деятельности определенных ФГОС СПО. Порядок и периодичность промежуточной аттестации обучающихся, определяется графиком учебного процесса."
B7: 5. Время, отводимое на консультации, предусматривается за счет времени, отводимого на промежуточную аттестацию. Формы проведения консультаций групповые, индивидуальные, устные, а так же с использованием образовательного портала.
B8: 6. Учебная и производственная практика проводятся в соответствии с графиком учебного процесса настоящего учебного плана. При реализации производственной практики предусматривается : практика по профилю профессии. Учебная практика направлена на формирование у обучающихся практических профессиональных умений, приобретение первоначального практического опыта, реализуется в рамках модулей ППКРС по основным видам деятельности для последующего освоения ими общих и профессиональных компетенций по избранной профессии. Учебная практика проводится преподавателями дисциплин профессионального цикла в учебно-производственных мастерских или лабораториях ОУ. Практика по профилю профессии направлена на формирование у обучающихся общих и профессиональных компетенций, приобретение практического опыта и реализуется в рамках модулей ППКРС по каждому из основных видов деятельности, предусмотренных ФГОС по специальности. Практика завершается дифференцированным зачетом, отражающим уровень освоенных общих и профессиональных компетенций.
B10: Согласовано
B12: Методист МО | C12: В.Л. Калинина
B13: Заведующий ОМПТС | C13: О.С. Лядова
B14: Методист ОМПТС | C14: Г.А. Парадина
B15: Председатель МПЦК | C15: О.Э. Сонина

Sheet Start (hidden)
